[Event "Titled Tuesday Blitz March 07 Early 2023"]
[White "Vaglio Munoz, Jaime"]
[Black "Erzhanov, Arman"]
[WhiteFideId "6500145"]
[BlackFideId "4138821"]
[WhiteElo "2199"]
[BlackElo "2138"]
[Result "1-0"]
[Round "09"]
[TimeControl "180+2"]
[Date "2023.03.07"]
[WhiteClock "0:01:05"]
[BlackClock "0:00:57"]

1. Nf3 {[%clk 0:03:00]}  d6 {[%clk 0:02:20]} 2. d4 {[%clk 0:02:59]}  g6 {[%clk 0:02:20]} 3. e4 {[%clk 0:02:59]}  Bg7 {[%clk 0:02:20]} 4. c3 {[%clk 0:02:58]}  c6 {[%clk 0:02:20]} 5. Bd3 {[%clk 0:02:54]}  Nd7 {[%clk 0:02:20]} 6. O-O {[%clk 0:02:54]}  e5 {[%clk 0:02:21]} 7. Re1 {[%clk 0:02:53]}  Ngf6 {[%clk 0:02:21]} 8. h3 {[%clk 0:02:52]}  O-O {[%clk 0:02:22]} 9. Nbd2 {[%clk 0:02:47]}  Re8 {[%clk 0:02:22]} 10. b3 {[%clk 0:02:30]}  Qc7 {[%clk 0:02:18]} 11. Bb2 {[%clk 0:02:28]}  b5 {[%clk 0:02:13]} 12. c4 {[%clk 0:02:21]}  a6 {[%clk 0:02:11]} 13. Rc1 {[%clk 0:02:17]}  b4 {[%clk 0:02:11]} 14. c5 {[%clk 0:02:09]}  d5 {[%clk 0:02:00]} 15. exd5 {[%clk 0:02:01]}  Nxd5 {[%clk 0:01:57]} 16. Nc4 {[%clk 0:02:00]}  f6 {[%clk 0:01:40]} 17. Nd6 {[%clk 0:01:53]}  Rf8 {[%clk 0:01:31]} 18. Bc4 {[%clk 0:01:39]}  Kh8 {[%clk 0:01:30]} 19. Bxd5 {[%clk 0:01:36]}  cxd5 {[%clk 0:01:31]} 20. dxe5 {[%clk 0:01:37]}  Nxe5 {[%clk 0:01:23]} 21. Nxe5 {[%clk 0:01:34]}  fxe5 {[%clk 0:01:24]} 22. Qxd5 {[%clk 0:01:35]}  Bd7 {[%clk 0:01:16]} 23. Nf7+ {[%clk 0:01:15]}  Rxf7 {[%clk 0:01:17]} 24. Qxf7 {[%clk 0:01:16]}  Rf8 {[%clk 0:01:17]} 25. Bxe5 {[%clk 0:01:12]}  Rxf7 {[%clk 0:01:05]} 26. Bxc7 {[%clk 0:01:12]}  Bc3 {[%clk 0:01:03]} 27. Be5+ {[%clk 0:01:10]}  Bxe5 {[%clk 0:01:03]} 28. Rxe5 {[%clk 0:01:11]}  Bc6 {[%clk 0:01:02]} 29. Re6 {[%clk 0:01:10]}  Rc7 {[%clk 0:01:03]} 30. Rce1 {[%clk 0:01:09]}  Bb5 {[%clk 0:01:03]} 31. R1e5 {[%clk 0:01:05]}  Kg8 {[%clk 0:00:57]} 32. Re7 {[%clk 0:01:05]}  Rc6 {[%clk 0:00:58]} 33. Rb7 {[%clk 0:01:05]}  h5 {[%clk 0:00:57]} 34. Re8# {[%clk 0:01:05]} 1-0


[Site "https://www.chess.com"]

[Event "Titled Tuesday Blitz March 07 Early 2023"]
[White "surrenderPLS"]
[Black "Garrido, Denis"]
[BlackFideId "601217"]
[WhiteElo "2500"]
[BlackElo "2262"]
[Result "0-1"]
[Round "09"]
[TimeControl "180+2"]
[Date "2023.03.07"]
[WhiteClock "0:00:28"]
[BlackClock "0:01:12"]

1. e4 {[%clk 0:03:00]}  c5 {[%clk 0:02:59]} 2. Nf3 {[%clk 0:03:00]}  d6 {[%clk 0:02:58]} 3. d4 {[%clk 0:03:00]}  cxd4 {[%clk 0:02:59]} 4. Nxd4 {[%clk 0:03:00]}  Nf6 {[%clk 0:03:00]} 5. Nc3 {[%clk 0:03:00]}  Nc6 {[%clk 0:03:00]} 6. Bg5 {[%clk 0:02:59]}  e6 {[%clk 0:03:00]} 7. Qd3 {[%clk 0:02:59]}  Bd7 {[%clk 0:03:00]} 8. O-O-O {[%clk 0:02:43]}  a6 {[%clk 0:02:57]} 9. f4 {[%clk 0:02:39]}  Be7 {[%clk 0:02:56]} 10. Be2 {[%clk 0:02:33]}  Qa5 {[%clk 0:02:53]} 11. Qg3 {[%clk 0:02:27]}  Nxd4 {[%clk 0:02:46]} 12. Rxd4 {[%clk 0:02:26]}  Rc8 {[%clk 0:02:46]} 13. e5 {[%clk 0:02:16]}  dxe5 {[%clk 0:02:17]} 14. fxe5 {[%clk 0:02:17]}  Rxc3 {[%clk 0:02:11]} 15. bxc3 {[%clk 0:01:24]}  Ba3+ {[%clk 0:02:10]} 16. Kd2 {[%clk 0:01:20]}  Nd5 {[%clk 0:02:10]} 17. Bc4 {[%clk 0:01:15]}  Bc6 {[%clk 0:01:51]} 18. Bb3 {[%clk 0:01:02]}  Bb2 {[%clk 0:01:36]} 19. Bxd5 {[%clk 0:00:58]}  Bxd5 {[%clk 0:01:34]} 20. Rxd5 {[%clk 0:00:40]}  Qxd5+ {[%clk 0:01:27]} 21. Qd3 {[%clk 0:00:36]}  Qxg2+ {[%clk 0:01:22]} 22. Ke3 {[%clk 0:00:35]}  Qxg5+ {[%clk 0:01:20]} 23. Kf3 {[%clk 0:00:30]}  O-O {[%clk 0:01:18]} 24. Rb1 {[%clk 0:00:31]}  Qh5+ {[%clk 0:01:16]} 25. Kg2 {[%clk 0:00:30]}  Ba3 {[%clk 0:01:13]} 26. Rxb7 {[%clk 0:00:28]}  Qxe5 {[%clk 0:01:12]} 0-1


[Site "https://www.chess.com"]

[Event "Titled Tuesday Blitz March 07 Early 2023"]
[White "Hoffmann, Asa"]
[Black "Zahid, Sanatan"]
[WhiteFideId "2001470"]
[BlackFideId "10201963"]
[WhiteElo "2117"]
[BlackElo "1865"]
[Result "0-1"]
[Round "09"]
[TimeControl "180+2"]
[Date "2023.03.07"]
[WhiteClock "0:00:02"]
[BlackClock "0:02:20"]

1. d4 {[%clk 0:02:53]}  Nf6 {[%clk 0:02:59]} 2. Bg5 {[%clk 0:02:48]}  b6 {[%clk 0:02:58]} 3. f3 {[%clk 0:02:43]}  d5 {[%clk 0:02:56]} 4. c4 {[%clk 0:02:41]}  e6 {[%clk 0:02:57]} 5. Nc3 {[%clk 0:02:40]}  c6 {[%clk 0:02:57]} 6. e4 {[%clk 0:02:39]}  dxe4 {[%clk 0:02:57]} 7. fxe4 {[%clk 0:02:38]}  h6 {[%clk 0:02:58]} 8. Bh4 {[%clk 0:02:37]}  g5 {[%clk 0:02:58]} 9. Bg3 {[%clk 0:02:33]}  Bg7 {[%clk 0:02:58]} 10. e5 {[%clk 0:02:31]}  Nfd7 {[%clk 0:02:57]} 11. Ne4 {[%clk 0:02:22]}  O-O {[%clk 0:02:56]} 12. h4 {[%clk 0:02:22]}  f5 {[%clk 0:02:56]} 13. Nd6 {[%clk 0:02:13]}  g4 {[%clk 0:02:53]} 14. Bf4 {[%clk 0:02:09]}  Na6 {[%clk 0:02:46]} 15. Qd2 {[%clk 0:02:08]}  Kh7 {[%clk 0:02:45]} 16. Ne2 {[%clk 0:02:01]}  Nc7 {[%clk 0:02:45]} 17. Ng3 {[%clk 0:01:54]}  Kg6 {[%clk 0:02:44]} 18. Bd3 {[%clk 0:01:51]}  Ne8 {[%clk 0:02:43]} 19. h5+ {[%clk 0:01:46]}  Kh7 {[%clk 0:02:43]} 20. Ndxf5 {[%clk 0:01:44]}  exf5 {[%clk 0:02:43]} 21. Nxf5 {[%clk 0:01:29]}  Nxe5 {[%clk 0:02:35]} 22. Nxh6+ {[%clk 0:01:17]}  Nxd3+ {[%clk 0:02:30]} 23. Qxd3+ {[%clk 0:01:16]}  Kh8 {[%clk 0:02:31]} 24. g3 {[%clk 0:00:29]}  Qxd4 {[%clk 0:02:28]} 25. Qxd4 {[%clk 0:00:28]}  Bxd4 {[%clk 0:02:29]} 26. O-O-O {[%clk 0:00:28]}  Bg7 {[%clk 0:02:28]} 27. Rd8 {[%clk 0:00:16]}  Nf6 {[%clk 0:02:27]} 28. Rxf8+ {[%clk 0:00:12]}  Bxf8 {[%clk 0:02:28]} 29. Nf7+ {[%clk 0:00:12]}  Kg7 {[%clk 0:02:26]} 30. Ne5 {[%clk 0:00:11]}  Bf5 {[%clk 0:02:26]} 31. Nxc6 {[%clk 0:00:06]}  Rc8 {[%clk 0:02:24]} 32. Ne5 {[%clk 0:00:05]}  Kh7 {[%clk 0:02:22]} 33. Rd1 {[%clk 0:00:03]}  Be7 {[%clk 0:02:22]} 34. b3 {[%clk 0:00:02]}  Ba3+ {[%clk 0:02:20]} 0-1


[Site "https://www.chess.com"]

[Event "Titled Tuesday Blitz March 07 Early 2023"]
[White "Starozhilov, Leonid"]
[Black "Pein, Jonathan"]
[WhiteFideId "14106752"]
[BlackFideId "417092"]
[WhiteElo "2402"]
[BlackElo "2151"]
[Result "1-0"]
[Round "09"]
[TimeControl "180+2"]
[Date "2023.03.07"]
[WhiteClock "0:00:13"]
[BlackClock "0:00:18"]

1. e4 {[%clk 0:03:00]}  d6 {[%clk 0:02:58]} 2. d4 {[%clk 0:03:00]}  Nf6 {[%clk 0:02:58]} 3. Nc3 {[%clk 0:03:01]}  Nc6 {[%clk 0:02:59]} 4. Be3 {[%clk 0:02:55]}  Ng4 {[%clk 0:02:55]} 5. Bg5 {[%clk 0:02:54]}  h6 {[%clk 0:02:54]} 6. Bh4 {[%clk 0:02:52]}  g5 {[%clk 0:02:54]} 7. Bg3 {[%clk 0:02:52]}  e5 {[%clk 0:02:39]} 8. Bb5 {[%clk 0:02:44]}  exd4 {[%clk 0:02:29]} 9. Bxc6+ {[%clk 0:02:36]}  bxc6 {[%clk 0:02:30]} 10. Qxd4 {[%clk 0:02:37]}  Qf6 {[%clk 0:02:30]} 11. Nge2 {[%clk 0:02:27]}  Bg7 {[%clk 0:02:26]} 12. Qxf6 {[%clk 0:02:19]}  Bxf6 {[%clk 0:02:24]} 13. O-O-O {[%clk 0:02:05]}  h5 {[%clk 0:01:52]} 14. h3 {[%clk 0:01:43]}  Ne5 {[%clk 0:01:51]} 15. h4 {[%clk 0:01:34]}  Rb8 {[%clk 0:01:46]} 16. hxg5 {[%clk 0:01:29]}  Bg7 {[%clk 0:01:40]} 17. f3 {[%clk 0:01:15]}  Ba6 {[%clk 0:01:29]} 18. Nd4 {[%clk 0:01:11]}  Nc4 {[%clk 0:01:02]} 19. b3 {[%clk 0:00:49]}  Ne3 {[%clk 0:01:02]} 20. Rd2 {[%clk 0:00:42]}  c5 {[%clk 0:01:01]} 21. Nde2 {[%clk 0:00:39]}  Nxg2 {[%clk 0:00:58]} 22. Nd5 {[%clk 0:00:38]}  Kd7 {[%clk 0:00:48]} 23. Rg1 {[%clk 0:00:36]}  h4 {[%clk 0:00:46]} 24. Bh2 {[%clk 0:00:35]}  h3 {[%clk 0:00:43]} 25. c4 {[%clk 0:00:28]}  Nh4 {[%clk 0:00:34]} 26. Rd3 {[%clk 0:00:24]}  Rbe8 {[%clk 0:00:20]} 27. Nec3 {[%clk 0:00:20]}  Ng6 {[%clk 0:00:19]} 28. f4 {[%clk 0:00:18]}  Be5 {[%clk 0:00:19]} 29. fxe5 {[%clk 0:00:18]}  Nxe5 {[%clk 0:00:20]} 30. Nf6+ {[%clk 0:00:16]}  Ke6 {[%clk 0:00:19]} 31. Rdg3 {[%clk 0:00:10]}  Rd8 {[%clk 0:00:16]} 32. Ncd5 {[%clk 0:00:10]}  Bb7 {[%clk 0:00:12]} 33. Nxc7+ {[%clk 0:00:09]}  Ke7 {[%clk 0:00:12]} 34. Ncd5+ {[%clk 0:00:10]}  Kf8 {[%clk 0:00:12]} 35. Kd2 {[%clk 0:00:09]}  Rh4 {[%clk 0:00:12]} 36. Re3 {[%clk 0:00:07]}  Rf4 {[%clk 0:00:12]} 37. Bxf4 {[%clk 0:00:06]}  Ng6 {[%clk 0:00:11]} 38. Bh2 {[%clk 0:00:06]}  Bc8 {[%clk 0:00:12]} 39. Rgg3 {[%clk 0:00:05]}  Be6 {[%clk 0:00:13]} 40. Rxh3 {[%clk 0:00:05]}  a5 {[%clk 0:00:13]} 41. a4 {[%clk 0:00:04]}  Rb8 {[%clk 0:00:14]} 42. Kc2 {[%clk 0:00:04]}  Kg7 {[%clk 0:00:14]} 43. Rh6 {[%clk 0:00:04]}  Nf8 {[%clk 0:00:14]} 44. Bxd6 {[%clk 0:00:04]}  Rd8 {[%clk 0:00:13]} 45. Bxf8+ {[%clk 0:00:04]}  Rxf8 {[%clk 0:00:14]} 46. Rh7+ {[%clk 0:00:04]}  Kg6 {[%clk 0:00:14]} 47. Rh6+ {[%clk 0:00:04]}  Kxg5 {[%clk 0:00:15]} 48. Reh3 {[%clk 0:00:05]}  Bxh3 {[%clk 0:00:15]} 49. Rxh3 {[%clk 0:00:05]}  Rd8 {[%clk 0:00:14]} 50. Kc3 {[%clk 0:00:05]}  Kg6 {[%clk 0:00:14]} 51. Rd3 {[%clk 0:00:06]}  Rh8 {[%clk 0:00:14]} 52. Ng4 {[%clk 0:00:05]}  Rh1 {[%clk 0:00:12]} 53. Ne5+ {[%clk 0:00:05]}  Kg7 {[%clk 0:00:12]} 54. Nd7 {[%clk 0:00:06]}  Rc1+ {[%clk 0:00:13]} 55. Kb2 {[%clk 0:00:06]}  Re1 {[%clk 0:00:13]} 56. Nxc5 {[%clk 0:00:06]}  Kg6 {[%clk 0:00:13]} 57. Rd2 {[%clk 0:00:07]}  f5 {[%clk 0:00:12]} 58. exf5+ {[%clk 0:00:06]}  Kxf5 {[%clk 0:00:13]} 59. Nb7 {[%clk 0:00:07]}  Ke6 {[%clk 0:00:13]} 60. Rc2 {[%clk 0:00:08]}  Kd7 {[%clk 0:00:13]} 61. Nxa5 {[%clk 0:00:09]}  Kd6 {[%clk 0:00:13]} 62. b4 {[%clk 0:00:09]}  Kd7 {[%clk 0:00:13]} 63. Nb3 {[%clk 0:00:10]}  Kc8 {[%clk 0:00:13]} 64. Nc3 {[%clk 0:00:11]}  Kb7 {[%clk 0:00:14]} 65. a5 {[%clk 0:00:11]}  Re4 {[%clk 0:00:14]} 66. Nxe4 {[%clk 0:00:11]}  Ka6 {[%clk 0:00:15]} 67. b5+ {[%clk 0:00:11]}  Ka7 {[%clk 0:00:16]} 68. c5 {[%clk 0:00:12]}  Ka8 {[%clk 0:00:16]} 69. Rh2 {[%clk 0:00:12]}  Ka7 {[%clk 0:00:17]} 70. Rh7+ {[%clk 0:00:13]}  Ka8 {[%clk 0:00:18]} 71. Kc3 {[%clk 0:00:13]} 1-0


[Site "https://www.chess.com"]

[Event "Titled Tuesday Blitz March 07 Early 2023"]
[White "Bews, Steven"]
[Black "Markus, Robert"]
[WhiteFideId "2400529"]
[BlackFideId "921637"]
[WhiteElo "2576"]
[BlackElo "2623"]
[Result "1-0"]
[Round "09"]
[TimeControl "180+2"]
[Date "2023.03.07"]
[WhiteClock "0:02:18"]
[BlackClock "0:00:51"]

1. e4 {[%clk 0:03:00]}  c5 {[%clk 0:02:57]} 2. Nf3 {[%clk 0:03:00]}  d6 {[%clk 0:02:56]} 3. Nc3 {[%clk 0:03:00]}  g6 {[%clk 0:02:55]} 4. d4 {[%clk 0:03:00]}  cxd4 {[%clk 0:02:55]} 5. Nxd4 {[%clk 0:03:01]}  Bg7 {[%clk 0:02:54]} 6. Be3 {[%clk 0:03:01]}  Nc6 {[%clk 0:02:50]} 7. Be2 {[%clk 0:03:01]}  Nf6 {[%clk 0:02:49]} 8. O-O {[%clk 0:02:57]}  O-O {[%clk 0:02:49]} 9. Kh1 {[%clk 0:02:54]}  Qa5 {[%clk 0:02:45]} 10. Nb3 {[%clk 0:02:53]}  Qd8 {[%clk 0:02:41]} 11. f4 {[%clk 0:02:53]}  Bd7 {[%clk 0:02:38]} 12. Qd2 {[%clk 0:02:44]}  a6 {[%clk 0:02:36]} 13. Rad1 {[%clk 0:02:44]}  b5 {[%clk 0:02:33]} 14. Bf3 {[%clk 0:02:43]}  Rc8 {[%clk 0:02:31]} 15. Qe2 {[%clk 0:02:35]}  Qc7 {[%clk 0:02:05]} 16. g4 {[%clk 0:02:32]}  e5 {[%clk 0:01:52]} 17. g5 {[%clk 0:02:32]}  Nh5 {[%clk 0:01:48]} 18. Nd5 {[%clk 0:02:31]}  Qd8 {[%clk 0:01:43]} 19. Bxh5 {[%clk 0:02:31]}  gxh5 {[%clk 0:01:42]} 20. f5 {[%clk 0:02:32]}  f6 {[%clk 0:01:37]} 21. Qxh5 {[%clk 0:02:31]}  fxg5 {[%clk 0:01:32]} 22. Bxg5 {[%clk 0:02:32]}  Qe8 {[%clk 0:01:28]} 23. Qh4 {[%clk 0:02:31]}  Qf7 {[%clk 0:01:11]} 24. f6 {[%clk 0:02:29]}  Bh8 {[%clk 0:01:04]} 25. Bh6 {[%clk 0:02:24]}  Qe6 {[%clk 0:00:56]} 26. Rg1+ {[%clk 0:02:17]}  Kf7 {[%clk 0:00:56]} 27. Bxf8 {[%clk 0:02:18]}  Rxf8 {[%clk 0:00:56]} 28. Qxh7+ {[%clk 0:02:17]}  Ke8 {[%clk 0:00:50]} 29. Nc7+ {[%clk 0:02:17]}  Kd8 {[%clk 0:00:50]} 30. Nxe6+ {[%clk 0:02:18]}  Bxe6 {[%clk 0:00:51]} 31. Rxd6+ {[%clk 0:02:18]} 1-0


[Site "https://www.chess.com"]

[Event "Titled Tuesday Blitz March 07 Early 2023"]
[White "Szyszylo, Rafal"]
[Black "Belov, Alexei"]
[WhiteFideId "1109626"]
[BlackFideId "4128206"]
[WhiteElo "1951"]
[BlackElo "2555"]
[Result "1-0"]
[Round "09"]
[TimeControl "180+2"]
[Date "2023.03.07"]
[WhiteClock "0:01:20"]
[BlackClock "0:01:36"]

1. e4 {[%clk 0:02:54]}  e6 {[%clk 0:03:00]} 2. d4 {[%clk 0:02:54]}  d5 {[%clk 0:03:00]} 3. e5 {[%clk 0:02:54]}  c5 {[%clk 0:03:00]} 4. c3 {[%clk 0:02:54]}  Qb6 {[%clk 0:03:00]} 5. Nf3 {[%clk 0:02:54]}  Nc6 {[%clk 0:03:00]} 6. Be2 {[%clk 0:02:55]}  cxd4 {[%clk 0:02:55]} 7. cxd4 {[%clk 0:02:54]}  Nh6 {[%clk 0:02:55]} 8. Bxh6 {[%clk 0:02:45]}  Qxb2 {[%clk 0:02:54]} 9. Nbd2 {[%clk 0:02:39]}  gxh6 {[%clk 0:02:52]} 10. O-O {[%clk 0:02:32]}  Bg7 {[%clk 0:02:40]} 11. Nb3 {[%clk 0:02:29]}  O-O {[%clk 0:02:38]} 12. Nc5 {[%clk 0:02:24]}  b6 {[%clk 0:02:38]} 13. Nd3 {[%clk 0:02:23]}  Qa3 {[%clk 0:02:35]} 14. Nf4 {[%clk 0:02:24]}  f6 {[%clk 0:02:23]} 15. exf6 {[%clk 0:01:44]}  Rxf6 {[%clk 0:02:10]} 16. Nh5 {[%clk 0:01:44]}  Rf7 {[%clk 0:02:10]} 17. Nxg7 {[%clk 0:01:44]}  Rxg7 {[%clk 0:02:09]} 18. Rc1 {[%clk 0:01:42]}  Bd7 {[%clk 0:02:08]} 19. Bb5 {[%clk 0:01:41]}  Nd8 {[%clk 0:01:48]} 20. Bxd7 {[%clk 0:01:31]}  Rxd7 {[%clk 0:01:48]} 21. Ne5 {[%clk 0:01:28]}  Rg7 {[%clk 0:01:48]} 22. Qh5 {[%clk 0:01:23]}  Qxa2 {[%clk 0:01:36]} 23. Qe8# {[%clk 0:01:20]} 1-0


[Site "https://www.chess.com"]

[Event "Titled Tuesday Blitz March 07 Early 2023"]
[White "Harriott, Tyrell"]
[Black "Turzo, Attila"]
[WhiteFideId "2086484"]
[BlackFideId "704954"]
[WhiteElo "2107"]
[BlackElo "2518"]
[Result "1/2-1/2"]
[Round "09"]
[TimeControl "180+2"]
[Date "2023.03.07"]
[WhiteClock "0:00:41"]
[BlackClock "0:00:10"]

1. d4 {[%clk 0:03:00]}  Nf6 {[%clk 0:02:59]} 2. e3 {[%clk 0:03:01]}  c5 {[%clk 0:02:59]} 3. f4 {[%clk 0:03:00]}  g6 {[%clk 0:02:57]} 4. Bd3 {[%clk 0:02:59]}  Bg7 {[%clk 0:02:56]} 5. c3 {[%clk 0:02:58]}  d5 {[%clk 0:02:51]} 6. Nf3 {[%clk 0:02:57]}  O-O {[%clk 0:02:51]} 7. O-O {[%clk 0:02:57]}  b6 {[%clk 0:02:49]} 8. Nbd2 {[%clk 0:02:53]}  Ba6 {[%clk 0:02:49]} 9. Bxa6 {[%clk 0:02:53]}  Nxa6 {[%clk 0:02:49]} 10. b3 {[%clk 0:02:54]}  Nc7 {[%clk 0:02:45]} 11. Bb2 {[%clk 0:02:48]}  Rc8 {[%clk 0:02:38]} 12. Ne5 {[%clk 0:02:44]}  Nb5 {[%clk 0:02:34]} 13. f5 {[%clk 0:02:42]}  cxd4 {[%clk 0:02:28]} 14. cxd4 {[%clk 0:02:39]}  Nd6 {[%clk 0:02:27]} 15. fxg6 {[%clk 0:02:39]}  hxg6 {[%clk 0:02:23]} 16. Rf2 {[%clk 0:02:15]}  Nfe4 {[%clk 0:02:21]} 17. Rf3 {[%clk 0:02:07]}  Nxd2 {[%clk 0:02:17]} 18. Qxd2 {[%clk 0:02:06]}  Qc7 {[%clk 0:01:52]} 19. Ba3 {[%clk 0:01:56]}  Qc3 {[%clk 0:01:39]} 20. Qxc3 {[%clk 0:01:48]}  Rxc3 {[%clk 0:01:40]} 21. Bxd6 {[%clk 0:01:43]}  exd6 {[%clk 0:01:40]} 22. Nd7 {[%clk 0:01:42]}  Rd8 {[%clk 0:01:36]} 23. Nf6+ {[%clk 0:01:42]}  Bxf6 {[%clk 0:01:36]} 24. Rxf6 {[%clk 0:01:42]}  Rxe3 {[%clk 0:01:37]} 25. Raf1 {[%clk 0:01:38]}  Rd7 {[%clk 0:01:35]} 26. Rd1 {[%clk 0:01:30]}  Re2 {[%clk 0:01:32]} 27. Rf2 {[%clk 0:01:30]}  Rxf2 {[%clk 0:01:24]} 28. Kxf2 {[%clk 0:01:31]}  Rc7 {[%clk 0:01:24]} 29. Rd2 {[%clk 0:01:30]}  Rc3 {[%clk 0:01:22]} 30. Ke2 {[%clk 0:01:30]}  f5 {[%clk 0:01:18]} 31. Kf2 {[%clk 0:01:28]}  Kf7 {[%clk 0:01:17]} 32. Ke2 {[%clk 0:01:27]}  Kf6 {[%clk 0:01:17]} 33. Rd3 {[%clk 0:01:26]}  Rc1 {[%clk 0:01:12]} 34. Rd2 {[%clk 0:01:26]}  f4 {[%clk 0:01:03]} 35. Kd3 {[%clk 0:01:23]}  g5 {[%clk 0:00:56]} 36. Ke2 {[%clk 0:01:15]}  Kf5 {[%clk 0:00:50]} 37. Kd3 {[%clk 0:01:15]}  Re1 {[%clk 0:00:48]} 38. Rc2 {[%clk 0:01:06]}  Re3+ {[%clk 0:00:42]} 39. Kd2 {[%clk 0:01:06]}  Ke4 {[%clk 0:00:37]} 40. Rc7 {[%clk 0:01:06]}  a5 {[%clk 0:00:34]} 41. Rg7 {[%clk 0:01:04]}  a4 {[%clk 0:00:30]} 42. bxa4 {[%clk 0:01:00]}  Ra3 {[%clk 0:00:30]} 43. Rxg5 {[%clk 0:00:59]}  Rxa2+ {[%clk 0:00:30]} 44. Kc3 {[%clk 0:00:58]}  Ra3+ {[%clk 0:00:28]} 45. Kb4 {[%clk 0:00:58]}  Ra1 {[%clk 0:00:23]} 46. Kb5 {[%clk 0:00:55]}  Rb1+ {[%clk 0:00:23]} 47. Kc6 {[%clk 0:00:55]}  Kxd4 {[%clk 0:00:20]} 48. Kxd6 {[%clk 0:00:53]}  Ke4 {[%clk 0:00:17]} 49. Rxd5 {[%clk 0:00:52]}  Rb2 {[%clk 0:00:17]} 50. Rg5 {[%clk 0:00:49]}  Rb4 {[%clk 0:00:16]} 51. Kc6 {[%clk 0:00:48]}  Rxa4 {[%clk 0:00:16]} 52. Kxb6 {[%clk 0:00:49]}  Rc4 {[%clk 0:00:14]} 53. h4 {[%clk 0:00:48]}  Rc8 {[%clk 0:00:13]} 54. h5 {[%clk 0:00:47]}  f3 {[%clk 0:00:12]} 55. gxf3+ {[%clk 0:00:46]}  Kxf3 {[%clk 0:00:12]} 56. h6 {[%clk 0:00:46]}  Kf4 {[%clk 0:00:10]} 57. Rg1 {[%clk 0:00:45]}  Rh8 {[%clk 0:00:10]} 58. Rg6 {[%clk 0:00:41]}  Kf5 {[%clk 0:00:10]} 59. Rc6 {[%clk 0:00:41]}  Kg5 {[%clk 0:00:10]} 1/2-1/2


[Site "https://www.chess.com"]

[Event "Titled Tuesday Blitz March 07 Early 2023"]
[White "Vifleemskaia, Svetlana"]
[Black "Ramirez Allo, Eduardo"]
[WhiteFideId "4129490"]
[BlackFideId "2224178"]
[WhiteElo "1930"]
[BlackElo "2491"]
[Result "0-1"]
[Round "09"]
[TimeControl "180+2"]
[Date "2023.03.07"]
[WhiteClock "0:00:13"]
[BlackClock "0:01:35"]

1. d4 {[%clk 0:02:39]}  Nf6 {[%clk 0:02:59]} 2. c4 {[%clk 0:02:37]}  c5 {[%clk 0:02:59]} 3. d5 {[%clk 0:02:37]}  b5 {[%clk 0:02:59]} 4. Qc2 {[%clk 0:02:36]}  d6 {[%clk 0:02:59]} 5. e4 {[%clk 0:02:37]}  g6 {[%clk 0:02:59]} 6. cxb5 {[%clk 0:02:32]}  a6 {[%clk 0:02:59]} 7. Nc3 {[%clk 0:02:27]}  Bg7 {[%clk 0:02:59]} 8. Nf3 {[%clk 0:02:26]}  O-O {[%clk 0:02:59]} 9. Bd3 {[%clk 0:02:21]}  axb5 {[%clk 0:02:59]} 10. Nxb5 {[%clk 0:02:20]}  Ba6 {[%clk 0:02:59]} 11. O-O {[%clk 0:02:18]}  Nbd7 {[%clk 0:03:00]} 12. h3 {[%clk 0:02:15]}  Nxe4 {[%clk 0:02:58]} 13. Bxe4 {[%clk 0:02:08]}  Bxb5 {[%clk 0:02:57]} 14. Bd3 {[%clk 0:02:08]}  Qb6 {[%clk 0:02:55]} 15. Bg5 {[%clk 0:01:54]}  Rfe8 {[%clk 0:02:32]} 16. Rfe1 {[%clk 0:01:31]}  Bxd3 {[%clk 0:02:24]} 17. Qxd3 {[%clk 0:01:30]}  Ne5 {[%clk 0:02:25]} 18. Nxe5 {[%clk 0:01:28]}  Bxe5 {[%clk 0:02:26]} 19. a4 {[%clk 0:01:18]}  Qxb2 {[%clk 0:02:21]} 20. Rab1 {[%clk 0:01:10]}  Qa2 {[%clk 0:02:11]} 21. Rb7 {[%clk 0:00:59]}  c4 {[%clk 0:02:10]} 22. Qf3 {[%clk 0:00:47]}  c3 {[%clk 0:02:11]} 23. Rxe5 {[%clk 0:00:40]}  dxe5 {[%clk 0:02:07]} 24. Qxc3 {[%clk 0:00:40]}  Qxd5 {[%clk 0:01:58]} 25. Rxe7 {[%clk 0:00:33]}  Rxe7 {[%clk 0:01:49]} 26. Bxe7 {[%clk 0:00:33]}  Qd1+ {[%clk 0:01:39]} 27. Kh2 {[%clk 0:00:33]}  Qd4 {[%clk 0:01:39]} 28. Qc6 {[%clk 0:00:21]}  Qxa4 {[%clk 0:01:37]} 29. Qc7 {[%clk 0:00:13]}  Qf4+ {[%clk 0:01:35]} 0-1


[Site "https://www.chess.com"]

[Event "Titled Tuesday Blitz March 07 Early 2023"]
[White "Kostiukov, Alexandr"]
[Black "Hernandez Sanchez, Elvis De La Caridad"]
[WhiteFideId "14108100"]
[BlackFideId "6400353"]
[WhiteElo "2202"]
[BlackElo "2463"]
[Result "1-0"]
[Round "09"]
[TimeControl "180+2"]
[Date "2023.03.07"]
[WhiteClock "0:00:03"]
[BlackClock "0:00:01"]

1. g3 {[%clk 0:03:00]}  e5 {[%clk 0:02:57]} 2. c4 {[%clk 0:02:59]}  g6 {[%clk 0:02:54]} 3. Bg2 {[%clk 0:02:59]}  Bg7 {[%clk 0:02:54]} 4. Nc3 {[%clk 0:02:59]}  Ne7 {[%clk 0:02:54]} 5. Nf3 {[%clk 0:02:59]}  O-O {[%clk 0:02:54]} 6. O-O {[%clk 0:02:59]}  c6 {[%clk 0:02:52]} 7. d4 {[%clk 0:03:00]}  e4 {[%clk 0:02:51]} 8. Ng5 {[%clk 0:02:59]}  d5 {[%clk 0:02:50]} 9. Nh3 {[%clk 0:02:33]}  Na6 {[%clk 0:02:14]} 10. Bg5 {[%clk 0:02:06]}  Be6 {[%clk 0:01:59]} 11. Nf4 {[%clk 0:01:59]}  Nc7 {[%clk 0:01:24]} 12. Bxe7 {[%clk 0:01:28]}  Qxe7 {[%clk 0:01:23]} 13. cxd5 {[%clk 0:01:23]}  cxd5 {[%clk 0:01:19]} 14. Qb3 {[%clk 0:01:18]}  Rab8 {[%clk 0:01:12]} 15. e3 {[%clk 0:00:48]}  Qd6 {[%clk 0:01:07]} 16. Rac1 {[%clk 0:00:44]}  b5 {[%clk 0:01:06]} 17. f3 {[%clk 0:00:39]}  exf3 {[%clk 0:00:52]} 18. Bxf3 {[%clk 0:00:40]}  Rfd8 {[%clk 0:00:49]} 19. Nd3 {[%clk 0:00:31]}  Bh6 {[%clk 0:00:40]} 20. Rce1 {[%clk 0:00:29]}  a5 {[%clk 0:00:36]} 21. Nc5 {[%clk 0:00:29]}  b4 {[%clk 0:00:35]} 22. Ne2 {[%clk 0:00:27]}  Re8 {[%clk 0:00:34]} 23. Nf4 {[%clk 0:00:27]}  Bf5 {[%clk 0:00:30]} 24. Nxd5 {[%clk 0:00:20]}  Nxd5 {[%clk 0:00:29]} 25. Qxd5 {[%clk 0:00:21]}  Qxd5 {[%clk 0:00:22]} 26. Bxd5 {[%clk 0:00:22]}  Rxe3 {[%clk 0:00:21]} 27. Kg2 {[%clk 0:00:16]}  Rbe8 {[%clk 0:00:18]} 28. Rxe3 {[%clk 0:00:13]}  Rxe3 {[%clk 0:00:18]} 29. g4 {[%clk 0:00:12]}  Be6 {[%clk 0:00:10]} 30. Bf3 {[%clk 0:00:06]}  Bg7 {[%clk 0:00:06]} 31. d5 {[%clk 0:00:06]}  Bc8 {[%clk 0:00:05]} 32. Ne4 {[%clk 0:00:05]}  Bxb2 {[%clk 0:00:02]} 33. Nd6 {[%clk 0:00:04]}  Bd7 {[%clk 0:00:02]} 34. Bd1 {[%clk 0:00:03]}  Be5 {[%clk 0:00:01]} 35. Nxf7 {[%clk 0:00:03]}  Bb8 {[%clk 0:00:01]} 36. Nh6+ {[%clk 0:00:03]} 1-0


[Site "https://www.chess.com"]